[Event "Titled Tuesday Blitz May 23 Late 2023"]
[White "The_Sherman_Variation"]
[Black "Carlsen, Magnus"]
[BlackFideId "1503014"]
[WhiteElo "2515"]
[BlackElo "2852"]
[Result "0-1"]
[Round "01"]
[TimeControl "180+2"]
[Date "2023.05.23"]
[WhiteClock "0:00:20"]
[BlackClock "0:01:59"]

1. e4 {[%clk 0:02:57]}  d5 {[%clk 0:02:59]} 2. exd5 {[%clk 0:02:57]}  Qxd5 {[%clk 0:03:00]} 3. Nc3 {[%clk 0:02:56]}  Qd6 {[%clk 0:03:00]} 4. d4 {[%clk 0:02:56]}  Nf6 {[%clk 0:03:00]} 5. Nf3 {[%clk 0:02:56]}  a6 {[%clk 0:03:00]} 6. Be2 {[%clk 0:02:52]}  b5 {[%clk 0:02:59]} 7. O-O {[%clk 0:02:49]}  Bb7 {[%clk 0:02:59]} 8. Bg5 {[%clk 0:02:46]}  Nbd7 {[%clk 0:02:58]} 9. a4 {[%clk 0:02:45]}  b4 {[%clk 0:02:58]} 10. Nb1 {[%clk 0:02:45]}  e6 {[%clk 0:02:58]} 11. Nbd2 {[%clk 0:02:45]}  c5 {[%clk 0:02:57]} 12. Nc4 {[%clk 0:02:44]}  Qc7 {[%clk 0:02:57]} 13. c3 {[%clk 0:02:41]}  bxc3 {[%clk 0:02:56]} 14. bxc3 {[%clk 0:02:42]}  Be7 {[%clk 0:02:56]} 15. Rb1 {[%clk 0:02:41]}  O-O {[%clk 0:02:56]} 16. Qc1 {[%clk 0:02:38]}  Be4 {[%clk 0:02:55]} 17. Bf4 {[%clk 0:02:33]}  Qc6 {[%clk 0:02:54]} 18. Nfe5 {[%clk 0:02:26]}  Nxe5 {[%clk 0:02:54]} 19. Nxe5 {[%clk 0:02:27]}  Qxa4 {[%clk 0:02:54]} 20. Ra1 {[%clk 0:02:23]}  Qe8 {[%clk 0:02:55]} 21. Bxa6 {[%clk 0:02:10]}  cxd4 {[%clk 0:02:52]} 22. cxd4 {[%clk 0:02:09]}  Qd8 {[%clk 0:02:46]} 23. Nc6 {[%clk 0:01:57]}  Bxc6 {[%clk 0:02:45]} 24. Qxc6 {[%clk 0:01:58]}  Qxd4 {[%clk 0:02:46]} 25. Be3 {[%clk 0:01:56]}  Qe5 {[%clk 0:02:46]} 26. Ra4 {[%clk 0:01:46]}  Nd5 {[%clk 0:02:41]} 27. Bd4 {[%clk 0:01:42]}  Qf5 {[%clk 0:02:36]} 28. Ba1 {[%clk 0:01:13]}  Nb4 {[%clk 0:02:13]} 29. Qb5 {[%clk 0:01:09]}  Nxa6 {[%clk 0:02:07]} 30. Qb7 {[%clk 0:00:57]}  Nc5 {[%clk 0:02:02]} 31. Qxa8 {[%clk 0:00:49]}  Rxa8 {[%clk 0:02:02]} 32. Rxa8+ {[%clk 0:00:50]}  Bf8 {[%clk 0:02:03]} 33. h3 {[%clk 0:00:37]}  Qd5 {[%clk 0:02:02]} 34. Rb8 {[%clk 0:00:36]}  f6 {[%clk 0:02:00]} 35. Bc3 {[%clk 0:00:33]}  Kf7 {[%clk 0:01:59]} 36. Bb4 {[%clk 0:00:20]}  Nd7 {[%clk 0:01:59]} 0-1


[Site "https://www.chess.com"]

[Event "Titled Tuesday Blitz May 23 Late 2023"]
[White "Ismayil, Malak"]
[Black "Bluebaum, Matthias"]
[WhiteFideId "13412604"]
[BlackFideId "24651516"]
[WhiteElo "1868"]
[BlackElo "2639"]
[Result "0-1"]
[Round "01"]
[TimeControl "180+2"]
[Date "2023.05.23"]
[WhiteClock "0:00:07"]
[BlackClock "0:01:02"]

1. e4 {[%clk 0:02:57]}  e6 {[%clk 0:03:00]} 2. d4 {[%clk 0:02:56]}  d5 {[%clk 0:03:00]} 3. Nd2 {[%clk 0:02:57]}  c5 {[%clk 0:03:00]} 4. exd5 {[%clk 0:02:55]}  Qxd5 {[%clk 0:03:01]} 5. dxc5 {[%clk 0:02:53]}  Nf6 {[%clk 0:03:01]} 6. Ngf3 {[%clk 0:02:54]}  Qxc5 {[%clk 0:03:00]} 7. Bd3 {[%clk 0:02:53]}  Nbd7 {[%clk 0:03:01]} 8. O-O {[%clk 0:02:53]}  Qc7 {[%clk 0:03:01]} 9. Qe2 {[%clk 0:02:52]}  Nc5 {[%clk 0:03:01]} 10. Bb5+ {[%clk 0:02:49]}  Bd7 {[%clk 0:03:01]} 11. Nb3 {[%clk 0:02:47]}  a6 {[%clk 0:02:53]} 12. Bxd7+ {[%clk 0:02:45]}  Ncxd7 {[%clk 0:02:54]} 13. Bg5 {[%clk 0:02:40]}  Bd6 {[%clk 0:02:49]} 14. Rad1 {[%clk 0:02:40]}  O-O {[%clk 0:02:48]} 15. c3 {[%clk 0:02:39]}  h6 {[%clk 0:02:47]} 16. Bh4 {[%clk 0:02:38]}  Nd5 {[%clk 0:02:43]} 17. Bg3 {[%clk 0:02:37]}  Bxg3 {[%clk 0:02:40]} 18. hxg3 {[%clk 0:02:38]}  b5 {[%clk 0:02:41]} 19. a3 {[%clk 0:02:34]}  Rad8 {[%clk 0:02:40]} 20. Nbd4 {[%clk 0:02:33]}  N7b6 {[%clk 0:02:39]} 21. Ne5 {[%clk 0:02:32]}  Rd6 {[%clk 0:02:31]} 22. Qf3 {[%clk 0:02:14]}  Rfd8 {[%clk 0:02:22]} 23. Rde1 {[%clk 0:02:05]}  Nc4 {[%clk 0:02:18]} 24. Nxc4 {[%clk 0:02:03]}  Qxc4 {[%clk 0:02:17]} 25. Re4 {[%clk 0:01:57]}  Nf6 {[%clk 0:02:09]} 26. Re3 {[%clk 0:01:41]}  Qd5 {[%clk 0:02:05]} 27. Qe2 {[%clk 0:01:37]}  Qh5 {[%clk 0:01:51]} 28. Qxh5 {[%clk 0:01:35]}  Nxh5 {[%clk 0:01:52]} 29. Rfe1 {[%clk 0:01:26]}  Nf6 {[%clk 0:01:52]} 30. Re5 {[%clk 0:01:25]}  Nd7 {[%clk 0:01:51]} 31. R5e2 {[%clk 0:01:23]}  Nb6 {[%clk 0:01:50]} 32. g4 {[%clk 0:01:22]}  Nc4 {[%clk 0:01:44]} 33. f3 {[%clk 0:01:22]}  g6 {[%clk 0:01:44]} 34. Kf2 {[%clk 0:01:19]}  e5 {[%clk 0:01:40]} 35. Nb3 {[%clk 0:01:19]}  Rd5 {[%clk 0:01:36]} 36. Kg3 {[%clk 0:01:14]}  Kg7 {[%clk 0:01:36]} 37. Re4 {[%clk 0:01:12]}  Kf6 {[%clk 0:01:28]} 38. Rh1 {[%clk 0:01:09]}  Kg7 {[%clk 0:01:24]} 39. Rhe1 {[%clk 0:01:08]}  R8d6 {[%clk 0:01:24]} 40. R4e2 {[%clk 0:00:55]}  a5 {[%clk 0:01:17]} 41. Na1 {[%clk 0:00:29]}  Rd2 {[%clk 0:01:06]} 42. b3 {[%clk 0:00:25]}  Rxe2 {[%clk 0:01:06]} 43. Rxe2 {[%clk 0:00:26]}  Nxa3 {[%clk 0:01:07]} 44. Ra2 {[%clk 0:00:22]}  b4 {[%clk 0:01:06]} 45. cxb4 {[%clk 0:00:23]}  axb4 {[%clk 0:01:07]} 46. Re2 {[%clk 0:00:22]}  Rd3 {[%clk 0:01:04]} 47. Kf2 {[%clk 0:00:16]}  Rc3 {[%clk 0:01:04]} 48. Re1 {[%clk 0:00:11]}  Kf6 {[%clk 0:01:02]} 49. Rd1 {[%clk 0:00:11]}  Ke6 {[%clk 0:01:01]} 50. Ke2 {[%clk 0:00:11]}  Nc2 {[%clk 0:00:59]} 51. Nxc2 {[%clk 0:00:07]}  Rxc2+ {[%clk 0:01:00]} 52. Kd3 {[%clk 0:00:08]}  Rc3+ {[%clk 0:01:00]} 53. Ke2 {[%clk 0:00:08]}  Rxb3 {[%clk 0:01:01]} 54. Ra1 {[%clk 0:00:09]}  Rb2+ {[%clk 0:01:01]} 55. Ke3 {[%clk 0:00:07]}  Rxg2 {[%clk 0:01:02]} 0-1


[Site "https://www.chess.com"]

[Event "Titled Tuesday Blitz May 23 Late 2023"]
[White "SereneSalmon"]
[Black "Bortnyk, Olexandr"]
[BlackFideId "14120828"]
[WhiteElo "2506"]
[BlackElo "2734"]
[Result "0-1"]
[Round "01"]
[TimeControl "180+2"]
[Date "2023.05.23"]
[WhiteClock "0:00:14"]
[BlackClock "0:00:04"]

1. Nf3 {[%clk 0:03:00]}  Nf6 {[%clk 0:02:59]} 2. d4 {[%clk 0:02:59]}  b6 {[%clk 0:02:55]} 3. c4 {[%clk 0:02:58]}  Bb7 {[%clk 0:02:55]} 4. g3 {[%clk 0:02:58]}  g6 {[%clk 0:02:56]} 5. Bg2 {[%clk 0:02:58]}  Bg7 {[%clk 0:02:56]} 6. O-O {[%clk 0:02:58]}  O-O {[%clk 0:02:56]} 7. d5 {[%clk 0:02:58]}  Na6 {[%clk 0:02:52]} 8. Nc3 {[%clk 0:02:57]}  Nc5 {[%clk 0:02:51]} 9. Qc2 {[%clk 0:02:55]}  a5 {[%clk 0:02:47]} 10. e4 {[%clk 0:02:50]}  c6 {[%clk 0:02:33]} 11. Be3 {[%clk 0:02:24]}  cxd5 {[%clk 0:02:27]} 12. exd5 {[%clk 0:02:17]}  Ne8 {[%clk 0:02:23]} 13. Rfe1 {[%clk 0:02:12]}  Nd6 {[%clk 0:02:17]} 14. b3 {[%clk 0:02:05]}  a4 {[%clk 0:01:41]} 15. Bd4 {[%clk 0:02:00]}  axb3 {[%clk 0:01:35]} 16. axb3 {[%clk 0:02:01]}  Rxa1 {[%clk 0:01:35]} 17. Rxa1 {[%clk 0:02:01]}  Bxd4 {[%clk 0:01:34]} 18. Nxd4 {[%clk 0:02:02]}  e5 {[%clk 0:01:34]} 19. dxe6 {[%clk 0:01:47]}  dxe6 {[%clk 0:01:34]} 20. Bxb7 {[%clk 0:01:42]}  Ncxb7 {[%clk 0:01:27]} 21. Ndb5 {[%clk 0:01:30]}  Qf6 {[%clk 0:01:21]} 22. Nxd6 {[%clk 0:01:25]}  Nxd6 {[%clk 0:01:22]} 23. Rd1 {[%clk 0:01:25]}  Nf5 {[%clk 0:01:20]} 24. Ne4 {[%clk 0:01:20]}  Qe5 {[%clk 0:01:15]} 25. Qd3 {[%clk 0:01:11]}  h5 {[%clk 0:01:12]} 26. h4 {[%clk 0:01:09]}  Ra8 {[%clk 0:01:10]} 27. Ng5 {[%clk 0:01:08]}  Qf6 {[%clk 0:00:44]} 28. Qd7 {[%clk 0:01:04]}  Nh6 {[%clk 0:00:37]} 29. Qb7 {[%clk 0:01:01]}  Ra2 {[%clk 0:00:34]} 30. Qxb6 {[%clk 0:01:00]}  Kg7 {[%clk 0:00:31]} 31. Qd4 {[%clk 0:01:00]}  Qxd4 {[%clk 0:00:27]} 32. Rxd4 {[%clk 0:01:00]}  Rb2 {[%clk 0:00:26]} 33. Rd3 {[%clk 0:01:00]}  Ng4 {[%clk 0:00:26]} 34. Rf3 {[%clk 0:00:57]}  Ne5 {[%clk 0:00:24]} 35. Re3 {[%clk 0:00:54]}  Ng4 {[%clk 0:00:24]} 36. Rf3 {[%clk 0:00:43]}  Ne5 {[%clk 0:00:24]} 37. Re3 {[%clk 0:00:36]}  Kf6 {[%clk 0:00:20]} 38. Ne4+ {[%clk 0:00:34]}  Ke7 {[%clk 0:00:20]} 39. Rc3 {[%clk 0:00:30]}  f5 {[%clk 0:00:19]} 40. Nc5 {[%clk 0:00:28]}  Nc6 {[%clk 0:00:15]} 41. Nd3 {[%clk 0:00:26]}  Rb1+ {[%clk 0:00:15]} 42. Kg2 {[%clk 0:00:26]}  e5 {[%clk 0:00:16]} 43. b4 {[%clk 0:00:22]}  e4 {[%clk 0:00:17]} 44. Nf4 {[%clk 0:00:21]}  Ne5 {[%clk 0:00:17]} 45. b5 {[%clk 0:00:20]}  Kf7 {[%clk 0:00:13]} 46. Ne2 {[%clk 0:00:13]}  Rb4 {[%clk 0:00:12]} 47. Nd4 {[%clk 0:00:12]}  Rxc4 {[%clk 0:00:07]} 48. Rxc4 {[%clk 0:00:12]}  Nxc4 {[%clk 0:00:08]} 49. Kf1 {[%clk 0:00:12]}  Ke7 {[%clk 0:00:07]} 50. Ke2 {[%clk 0:00:11]}  Kd6 {[%clk 0:00:08]} 51. Nc2 {[%clk 0:00:11]}  Kc5 {[%clk 0:00:07]} 52. Ne3 {[%clk 0:00:12]}  Nd6 {[%clk 0:00:04]} 53. f3 {[%clk 0:00:13]}  Kxb5 {[%clk 0:00:05]} 54. fxe4 {[%clk 0:00:12]}  Nxe4 {[%clk 0:00:05]} 55. Kf3 {[%clk 0:00:12]}  Nf6 {[%clk 0:00:05]} 56. Ng2 {[%clk 0:00:12]}  Nd5 {[%clk 0:00:05]} 57. Nf4 {[%clk 0:00:12]}  Ne7 {[%clk 0:00:05]} 58. Ne6 {[%clk 0:00:12]}  Kc6 {[%clk 0:00:06]} 59. Kf4 {[%clk 0:00:12]}  Kd7 {[%clk 0:00:05]} 60. Nd4 {[%clk 0:00:13]}  Ke8 {[%clk 0:00:05]} 61. Kg5 {[%clk 0:00:13]}  Kf7 {[%clk 0:00:06]} 62. Ne2 {[%clk 0:00:13]}  Nd5 {[%clk 0:00:06]} 63. Nd4 {[%clk 0:00:12]}  Nf6 {[%clk 0:00:06]} 64. Nf3 {[%clk 0:00:12]}  Ne4+ {[%clk 0:00:05]} 65. Kf4 {[%clk 0:00:12]}  Kf6 {[%clk 0:00:06]} 66. Ng5 {[%clk 0:00:12]}  Nxg5 {[%clk 0:00:05]} 67. hxg5+ {[%clk 0:00:13]}  Ke6 {[%clk 0:00:05]} 68. Ke3 {[%clk 0:00:13]}  Ke5 {[%clk 0:00:06]} 69. Kf3 {[%clk 0:00:13]}  Kd4 {[%clk 0:00:06]} 70. Kf4 {[%clk 0:00:14]}  Kd5 {[%clk 0:00:06]} 71. Kf3 {[%clk 0:00:14]}  Ke5 {[%clk 0:00:04]} 72. Ke3 {[%clk 0:00:14]}  f4+ {[%clk 0:00:02]} 73. gxf4+ {[%clk 0:00:15]}  Kf5 {[%clk 0:00:03]} 74. Kf3 {[%clk 0:00:15]}  h4 {[%clk 0:00:03]} 75. Ke3 {[%clk 0:00:16]}  Kg4 {[%clk 0:00:03]} 76. Ke4 {[%clk 0:00:15]}  h3 {[%clk 0:00:04]} 77. f5 {[%clk 0:00:14]}  gxf5+ {[%clk 0:00:04]} 0-1


[Site "https://www.chess.com"]

[Event "Titled Tuesday Blitz May 23 Late 2023"]
[White "Miszler, Levente"]
[Black "Dubov, Daniil"]
[WhiteFideId "763276"]
[BlackFideId "24126055"]
[WhiteElo "2176"]
[BlackElo "2793"]
[Result "0-1"]
[Round "01"]
[TimeControl "180+2"]
[Date "2023.05.23"]
[WhiteClock "0:00:21"]
[BlackClock "0:02:10"]

1. Nf3 {[%clk 0:03:00]}  d5 {[%clk 0:02:59]} 2. d4 {[%clk 0:02:57]}  Nf6 {[%clk 0:02:59]} 3. c4 {[%clk 0:02:50]}  e6 {[%clk 0:02:59]} 4. g3 {[%clk 0:02:50]}  Be7 {[%clk 0:02:58]} 5. Bg2 {[%clk 0:02:50]}  O-O {[%clk 0:02:58]} 6. O-O {[%clk 0:02:51]}  dxc4 {[%clk 0:02:59]} 7. Qc2 {[%clk 0:02:51]}  b5 {[%clk 0:02:59]} 8. Rd1 {[%clk 0:02:45]}  Bb7 {[%clk 0:02:58]} 9. Ne5 {[%clk 0:02:38]}  Bxg2 {[%clk 0:02:57]} 10. Kxg2 {[%clk 0:02:39]}  Nc6 {[%clk 0:02:48]} 11. b3 {[%clk 0:02:15]}  Nxd4 {[%clk 0:02:33]} 12. Qb2 {[%clk 0:02:10]}  c5 {[%clk 0:02:32]} 13. bxc4 {[%clk 0:01:59]}  bxc4 {[%clk 0:02:32]} 14. Nf3 {[%clk 0:01:49]}  Rb8 {[%clk 0:02:30]} 15. Qc3 {[%clk 0:01:40]}  Nd5 {[%clk 0:02:27]} 16. Qxc4 {[%clk 0:01:37]}  Nxf3 {[%clk 0:02:27]} 17. exf3 {[%clk 0:01:27]}  Bf6 {[%clk 0:02:25]} 18. Nd2 {[%clk 0:00:37]}  Bxa1 {[%clk 0:02:24]} 19. Ba3 {[%clk 0:00:37]}  Bf6 {[%clk 0:02:14]} 20. Bxc5 {[%clk 0:00:32]}  Be7 {[%clk 0:02:13]} 21. Rc1 {[%clk 0:00:23]}  Bxc5 {[%clk 0:02:10]} 22. Qxc5 {[%clk 0:00:21]}  Rc8 {[%clk 0:02:10]} 0-1


[Site "https://www.chess.com"]

[Event "Titled Tuesday Blitz May 23 Late 2023"]
[White "Haszon, David"]
[Black "Checa, Nicolas"]
[WhiteFideId "733610"]
[BlackFideId "2069342"]
[WhiteElo "2210"]
[BlackElo "2507"]
[Result "0-1"]
[Round "01"]
[TimeControl "180+2"]
[Date "2023.05.23"]
[WhiteClock "0:00:14"]
[BlackClock "0:02:18"]

1. d4 {[%clk 0:02:59]}  d5 {[%clk 0:02:57]} 2. Bf4 {[%clk 0:02:56]}  Nf6 {[%clk 0:02:57]} 3. e3 {[%clk 0:02:56]}  Bg4 {[%clk 0:02:56]} 4. Qd3 {[%clk 0:02:45]}  c6 {[%clk 0:02:55]} 5. Nd2 {[%clk 0:02:44]}  e6 {[%clk 0:02:55]} 6. f3 {[%clk 0:02:32]}  Bf5 {[%clk 0:02:54]} 7. Qb3 {[%clk 0:02:33]}  Qb6 {[%clk 0:02:54]} 8. O-O-O {[%clk 0:02:25]}  Nbd7 {[%clk 0:02:46]} 9. g4 {[%clk 0:02:18]}  Bg6 {[%clk 0:02:45]} 10. h4 {[%clk 0:02:18]}  h5 {[%clk 0:02:44]} 11. g5 {[%clk 0:02:18]}  Ng8 {[%clk 0:02:44]} 12. c4 {[%clk 0:01:55]}  Ne7 {[%clk 0:02:37]} 13. Qxb6 {[%clk 0:01:32]}  axb6 {[%clk 0:02:34]} 14. a3 {[%clk 0:01:32]}  dxc4 {[%clk 0:02:30]} 15. Nxc4 {[%clk 0:01:28]}  Nd5 {[%clk 0:02:29]} 16. Nh3 {[%clk 0:01:12]}  b5 {[%clk 0:02:28]} 17. Ne5 {[%clk 0:01:03]}  Nxe5 {[%clk 0:02:27]} 18. dxe5 {[%clk 0:01:02]}  Bc5 {[%clk 0:02:27]} 19. Re1 {[%clk 0:00:54]}  Bf5 {[%clk 0:02:21]} 20. Rh2 {[%clk 0:00:28]}  b4 {[%clk 0:02:19]} 21. axb4 {[%clk 0:00:15]}  Ra1+ {[%clk 0:02:18]} 22. Kd2 {[%clk 0:00:14]}  Bxb4+ {[%clk 0:02:18]} 0-1


[Site "https://www.chess.com"]

[Event "Titled Tuesday Blitz May 23 Late 2023"]
[White "Paravyan, David"]
[Black "Kokoszczynski, Jan"]
[WhiteFideId "4194985"]
[BlackFideId "1174460"]
[WhiteElo "2563"]
[BlackElo "2139"]
[Result "1/2-1/2"]
[Round "01"]
[TimeControl "180+2"]
[Date "2023.05.23"]
[WhiteClock "0:00:14"]
[BlackClock "0:00:06"]

1. e4 {[%clk 0:03:00]}  e5 {[%clk 0:02:56]} 2. Nf3 {[%clk 0:03:01]}  Nc6 {[%clk 0:02:55]} 3. Bb5 {[%clk 0:03:02]}  a6 {[%clk 0:02:55]} 4. Ba4 {[%clk 0:03:02]}  Nf6 {[%clk 0:02:55]} 5. O-O {[%clk 0:03:03]}  Be7 {[%clk 0:02:54]} 6. d3 {[%clk 0:03:03]}  b5 {[%clk 0:02:54]} 7. Bb3 {[%clk 0:03:04]}  d6 {[%clk 0:02:55]} 8. a3 {[%clk 0:03:05]}  O-O {[%clk 0:02:50]} 9. Nc3 {[%clk 0:03:05]}  Na5 {[%clk 0:02:42]} 10. Ba2 {[%clk 0:03:05]}  c5 {[%clk 0:02:43]} 11. Nd5 {[%clk 0:03:03]}  Nc6 {[%clk 0:02:30]} 12. Re1 {[%clk 0:03:01]}  h6 {[%clk 0:02:27]} 13. c3 {[%clk 0:03:00]}  Re8 {[%clk 0:02:21]} 14. h3 {[%clk 0:02:59]}  Bf8 {[%clk 0:02:21]} 15. Be3 {[%clk 0:02:59]}  Be6 {[%clk 0:02:21]} 16. b4 {[%clk 0:02:56]}  Rc8 {[%clk 0:02:10]} 17. Rc1 {[%clk 0:02:55]}  Bxd5 {[%clk 0:01:57]} 18. exd5 {[%clk 0:02:56]}  Ne7 {[%clk 0:01:57]} 19. c4 {[%clk 0:02:54]}  cxb4 {[%clk 0:01:55]} 20. axb4 {[%clk 0:02:55]}  Nf5 {[%clk 0:01:53]} 21. Bb3 {[%clk 0:02:50]}  Nxe3 {[%clk 0:01:51]} 22. Rxe3 {[%clk 0:02:44]}  Qd7 {[%clk 0:01:51]} 23. c5 {[%clk 0:02:42]}  dxc5 {[%clk 0:01:47]} 24. Nxe5 {[%clk 0:02:42]}  Qf5 {[%clk 0:01:45]} 25. Qe2 {[%clk 0:01:41]}  cxb4 {[%clk 0:00:51]} 26. Nc6 {[%clk 0:01:40]}  Bd6 {[%clk 0:00:33]} 27. Rxe8+ {[%clk 0:01:39]}  Rxe8 {[%clk 0:00:33]} 28. Qf3 {[%clk 0:01:19]}  Qxf3 {[%clk 0:00:32]} 29. gxf3 {[%clk 0:01:20]}  Nh5 {[%clk 0:00:27]} 30. Ra1 {[%clk 0:01:19]}  Nf4 {[%clk 0:00:28]} 31. d4 {[%clk 0:01:08]}  Re2 {[%clk 0:00:19]} 32. Ne5 {[%clk 0:00:54]}  Rb2 {[%clk 0:00:11]} 33. Bd1 {[%clk 0:00:52]}  a5 {[%clk 0:00:06]} 34. Rxa5 {[%clk 0:00:37]}  Rb1 {[%clk 0:00:06]} 35. Ra8+ {[%clk 0:00:38]}  Kh7 {[%clk 0:00:06]} 36. Nxf7 {[%clk 0:00:39]}  Rxd1+ {[%clk 0:00:07]} 37. Kh2 {[%clk 0:00:40]}  Rxd4 {[%clk 0:00:02]} 38. Nxd6 {[%clk 0:00:40]}  Rxd5 {[%clk 0:00:03]} 39. Ne4 {[%clk 0:00:37]}  b3 {[%clk 0:00:03]} 40. Ra3 {[%clk 0:00:38]}  b2 {[%clk 0:00:02]} 41. Rb3 {[%clk 0:00:38]}  Nd3 {[%clk 0:00:02]} 42. Nc3 {[%clk 0:00:22]}  Rc5 {[%clk 0:00:01]} 43. Nd1 {[%clk 0:00:22]}  Rc2 {[%clk 0:00:01]} 44. Kg3 {[%clk 0:00:23]}  Rd2 {[%clk 0:00:02]} 45. Nc3 {[%clk 0:00:21]}  Rc2 {[%clk 0:00:02]} 46. Nxb5 {[%clk 0:00:20]}  Rc1 {[%clk 0:00:02]} 47. Na3 {[%clk 0:00:21]}  Ra1 {[%clk 0:00:02]} 48. Rxd3 {[%clk 0:00:15]}  Rxa3 {[%clk 0:00:03]} 49. Rxa3 {[%clk 0:00:16]}  b1=Q {[%clk 0:00:04]} 50. Kg2 {[%clk 0:00:11]}  Qb4 {[%clk 0:00:04]} 51. Re3 {[%clk 0:00:11]}  Kg6 {[%clk 0:00:04]} 52. Re4 {[%clk 0:00:11]}  Qc5 {[%clk 0:00:05]} 53. Rg4+ {[%clk 0:00:12]}  Kh7 {[%clk 0:00:05]} 54. Re4 {[%clk 0:00:13]}  Qd5 {[%clk 0:00:05]} 55. Rg4 {[%clk 0:00:13]}  h5 {[%clk 0:00:06]} 56. Re4 {[%clk 0:00:14]}  g6 {[%clk 0:00:07]} 57. Ra4 {[%clk 0:00:14]}  Kh6 {[%clk 0:00:07]} 58. Re4 {[%clk 0:00:14]}  Qg5+ {[%clk 0:00:07]} 59. Kh2 {[%clk 0:00:14]}  Qc1 {[%clk 0:00:08]} 60. Kg2 {[%clk 0:00:14]}  Qd1 {[%clk 0:00:09]} 61. Re3 {[%clk 0:00:13]}  Qd5 {[%clk 0:00:08]} 62. Re4 {[%clk 0:00:13]}  Kg5 {[%clk 0:00:09]} 63. Kg3 {[%clk 0:00:13]}  Kf6 {[%clk 0:00:09]} 64. Kg2 {[%clk 0:00:13]}  Qg5+ {[%clk 0:00:09]} 65. Kf1 {[%clk 0:00:13]}  Qf5 {[%clk 0:00:09]} 66. Kg2 {[%clk 0:00:13]}  Qc5 {[%clk 0:00:09]} 67. Kg3 {[%clk 0:00:12]}  Qc2 {[%clk 0:00:09]} 68. Kg2 {[%clk 0:00:12]}  Kf5 {[%clk 0:00:09]} 69. Rb4 {[%clk 0:00:12]}  Qc5 {[%clk 0:00:09]} 70. Re4 {[%clk 0:00:12]}  Qa5 {[%clk 0:00:09]} 71. Rc4 {[%clk 0:00:12]}  g5 {[%clk 0:00:09]} 72. Re4 {[%clk 0:00:12]}  Qa3 {[%clk 0:00:09]} 73. Rc4 {[%clk 0:00:13]}  Kf6 {[%clk 0:00:09]} 74. Re4 {[%clk 0:00:13]}  Kg6 {[%clk 0:00:09]} 75. Rc4 {[%clk 0:00:13]}  Kf5 {[%clk 0:00:10]} 76. Rd4 {[%clk 0:00:14]}  Qc3 {[%clk 0:00:10]} 77. Re4 {[%clk 0:00:14]}  Qc2 {[%clk 0:00:09]} 78. Rb4 {[%clk 0:00:14]}  Qc3 {[%clk 0:00:08]} 79. Ra4 {[%clk 0:00:14]}  Kf6 {[%clk 0:00:08]} 80. Re4 {[%clk 0:00:15]}  Kg6 {[%clk 0:00:08]} 81. Ra4 {[%clk 0:00:15]}  Qc6 {[%clk 0:00:08]} 82. Re4 {[%clk 0:00:15]}  Qa6 {[%clk 0:00:08]} 83. Rb4 {[%clk 0:00:15]}  Kf5 {[%clk 0:00:09]} 84. Re4 {[%clk 0:00:15]}  Qd6 {[%clk 0:00:08]} 85. Ra4 {[%clk 0:00:15]}  h4 {[%clk 0:00:08]} 86. Re4 {[%clk 0:00:15]}  Qd3 {[%clk 0:00:08]} 87. Ra4 {[%clk 0:00:15]}  Qc2 {[%clk 0:00:08]} 88. Rd4 {[%clk 0:00:14]}  Qb2 {[%clk 0:00:08]} 89. Rc4 {[%clk 0:00:15]}  Qb3 {[%clk 0:00:08]} 90. Rd4 {[%clk 0:00:14]}  Ke5 {[%clk 0:00:08]} 91. Re4+ {[%clk 0:00:14]}  Kf6 {[%clk 0:00:08]} 92. Rd4 {[%clk 0:00:14]}  Kf5 {[%clk 0:00:09]} 93. Re4 {[%clk 0:00:15]}  Qb2 {[%clk 0:00:08]} 94. Rg4 {[%clk 0:00:15]}  Qb1 {[%clk 0:00:09]} 95. Rd4 {[%clk 0:00:15]}  Qa1 {[%clk 0:00:08]} 96. Re4 {[%clk 0:00:15]}  Qb2 {[%clk 0:00:08]} 97. Rg4 {[%clk 0:00:14]}  Qb3 {[%clk 0:00:06]} 1/2-1/2


[Site "https://www.chess.com"]

[Event "Titled Tuesday Blitz May 23 Late 2023"]
[White "Bortnyk, Mykola"]
[Black "Sokolov, Andrei"]
[WhiteFideId "14120836"]
[BlackFideId "11600306"]
[WhiteElo "2582"]
[BlackElo "2473"]
[Result "1-0"]
[Round "01"]
[TimeControl "180+2"]
[Date "2023.05.23"]
[WhiteClock "0:01:19"]
[BlackClock "0:00:15"]

1. e4 {[%clk 0:03:00]}  c6 {[%clk 0:02:58]} 2. Nc3 {[%clk 0:02:59]}  d5 {[%clk 0:02:58]} 3. Nf3 {[%clk 0:02:59]}  Bg4 {[%clk 0:02:55]} 4. h3 {[%clk 0:02:59]}  Bxf3 {[%clk 0:02:55]} 5. Qxf3 {[%clk 0:02:58]}  Nf6 {[%clk 0:02:55]} 6. exd5 {[%clk 0:02:53]}  cxd5 {[%clk 0:02:52]} 7. Bb5+ {[%clk 0:02:51]}  Nc6 {[%clk 0:02:46]} 8. O-O {[%clk 0:02:51]}  e6 {[%clk 0:02:45]} 9. Re1 {[%clk 0:02:46]}  Be7 {[%clk 0:02:39]} 10. Ne2 {[%clk 0:02:41]}  O-O {[%clk 0:02:33]} 11. c3 {[%clk 0:02:37]}  a6 {[%clk 0:02:26]} 12. Ba4 {[%clk 0:02:34]}  Ne5 {[%clk 0:02:03]} 13. Qg3 {[%clk 0:02:30]}  Nc4 {[%clk 0:01:56]} 14. d3 {[%clk 0:02:23]}  Nd6 {[%clk 0:01:46]} 15. Bc2 {[%clk 0:02:21]}  Nf5 {[%clk 0:01:42]} 16. Qf3 {[%clk 0:02:13]}  Bd6 {[%clk 0:01:31]} 17. d4 {[%clk 0:01:58]}  Ne7 {[%clk 0:01:27]} 18. Bg5 {[%clk 0:01:52]}  Ng6 {[%clk 0:01:11]} 19. h4 {[%clk 0:01:46]}  Re8 {[%clk 0:00:45]} 20. h5 {[%clk 0:01:39]}  Nf8 {[%clk 0:00:45]} 21. h6 {[%clk 0:01:39]}  Be7 {[%clk 0:00:38]} 22. hxg7 {[%clk 0:01:38]}  Kxg7 {[%clk 0:00:39]} 23. Nf4 {[%clk 0:01:24]}  Ng6 {[%clk 0:00:30]} 24. Bxf6+ {[%clk 0:01:21]}  Bxf6 {[%clk 0:00:28]} 25. Nh5+ {[%clk 0:01:21]}  Kh8 {[%clk 0:00:24]} 26. Nxf6 {[%clk 0:01:21]}  e5 {[%clk 0:00:20]} 27. Bxg6 {[%clk 0:01:18]}  fxg6 {[%clk 0:00:18]} 28. Nxe8 {[%clk 0:01:18]}  Qxe8 {[%clk 0:00:17]} 29. Qf6+ {[%clk 0:01:18]}  Kg8 {[%clk 0:00:15]} 30. Rxe5 {[%clk 0:01:19]} 1-0


[Site "https://www.chess.com"]